[Event "56th Biel Festival MTO 2023"]
[White "Besou,Hussain"]
[Black "Collin,Moritz Valentin"]
[Site "Biel"]
[Round "5.29"]
[Annotator "RC"]
[Result "1-0"]
[Date "2023.07.21"]
[WhiteElo "2348"]
[BlackElo "2132"]
[PlyCount "69"]
[TimeControl "60"]

1. e4 {[%emt 0:0:0]} c6 {[%emt 0:0:0]} 2. d4 {[%emt 0:0:0]} d5 {[%emt 0:0:0]} 3. e5 {[%emt 0:0:0]} Bf5 {[%emt 0:0:0]} 4. Nf3 {[%emt 0:0:0]} e6 {[%emt 0:0:0]} 5. Be2 {[%emt 0:0:0]} Ne7 {[%emt 0:0:0]} 6. O-O {[%emt 0:0:0]} Ng6 {[%emt 0:0:0]} 7. a4 {[%emt 0:0:0]} c5 {[%emt 0:0:0]} 8. c3 {[%emt 0:0:0]} Nc6 {[%emt 0:0:0]} 9. Na3 {[%emt 0:0:0]} a6 {[%emt 0:0:0]} 10. Ne1 {[%emt 0:0:0]} h5 {[%emt 0:2:5]} 11. Nac2 {[%emt 0:2:52]} cxd4 {[%emt 0:13:27]} 12. cxd4 {[%emt 0:0:17]} Nh4 {[%emt 0:14:58]} 13. g3 {[%emt 0:9:8]} Bxc2 {[%emt 0:0:32]} 14. Nxc2 {[%emt 0:0:11]} Nf5 {[%emt 0:0:11]} 15. Bxh5 {[%emt 0:0:18]} Qb6 {[%emt 0:7:51]} 16. Be3 {[%emt 0:3:19]} Na5 {[%emt 0:11:3]} 17. Be2 {[%emt 0:9:54]} Nb3 {[%emt 0:7:42]} 18. Rb1 {[%emt 0:2:47]} g6 {[%emt 0:4:21]} 19. Bd3 {[%emt 0:10:25]} Rc8 {[%emt 0:4:15]} 20. Kg2 {[%emt 0:10:26]} Bh6 {[%emt 0:3:48]} 21. Bxf5 {[%emt 0:9:43]} Bxe3 {[%emt 0:3:42]} 22. Bxe6 {[%emt 0:4:54]} Qxe6 {[%emt 0:3:43]} 23. Nxe3 {[%emt 0:0:13]} Qh3+ {[%emt 0:1:4]} 24. Kf3 {[%emt 0:0:4]} Na5 {[%emt 0:1:47]} 25. Ke2 {[%emt 0:5:0]} O-O {[%emt 0:2:58]} 26. Nxd5 {[%emt 0:1:31]} Kg7 {[%emt 0:0:36]} 27. Qd3 {[%emt 0:3:21]} Rfd8 {[%emt 0:1:59]} 28. Nf4 {[%emt 0:1:16]} Qg4+ {[%emt 0:3:35]} 29. f3 {[%emt 0:0:25]} Qd7 {[%emt 0:0:51]} 30. d5 {[%emt 0:2:7]} Qxa4 {[%emt 0:2:1]} 31. Rfc1 {[%emt 0:3:28]} Nb3 {[%emt 0:1:29]} 32. Rc3 {[%emt 0:0:33]} Rxc3 {[%emt 0:1:30]} 33. Qxc3 {[%emt 0:0:21]} g5 {[%emt 0:2:23]} 34. Nh5+ {[%emt 0:1:50]} Kh6 {[%emt 0:1:38]} 35. Nf6 {[%emt 0:0:12]} 1-0

[Event "56th Biel Festival MTO 2023"]
[White "Sutter,Oliver"]
[Black "Vincenti,Leonardo"]
[Site "Biel"]
[Round "5.30"]
[Annotator "ChessBase"]
[Result "1/2-1/2"]
[Date "2023.07.21"]
[WhiteElo "2313"]
[BlackElo "2117"]
[PlyCount "104"]
[TimeControl "60"]

1. Nf3 {[%emt 0:0:0]} d5 {[%emt 0:0:0]} 2. g3 {[%emt 0:0:0]} c6 {[%emt 0:0:0]} 3. Bg2 {[%emt 0:0:0]} Bg4 {[%emt 0:0:0]} 4. c4 {[%emt 0:0:0]} Nf6 {[%emt 0:0:0]} 5. cxd5 {[%emt 0:0:0]} cxd5 {[%emt 0:0:0]} 6. Ne5 {[%emt 0:0:0]} Bf5 {[%emt 0:0:0]} 7. O-O {[%emt 0:0:8]} e6 {[%emt 0:0:0]} 8. Qa4+ {[%emt 0:7:2]} Nbd7 {[%emt 0:0:0]} 9. d4 {[%emt 0:2:44]} Be7 {[%emt 0:8:38]} 10. Bf4 {[%emt 0:2:2]} O-O {[%emt 0:0:34]} 11. Rc1 {[%emt 0:1:41]} Nxe5 {[%emt 0:4:8]} 12. Bxe5 {[%emt 0:0:8]} Rc8 {[%emt 0:0:19]} 13. Rxc8 {[%emt 0:5:47]} Qxc8 {[%emt 0:0:44]} 14. Nd2 {[%emt 0:1:23]} a6 {[%emt 0:5:29]} 15. Bf4 {[%emt 0:7:38]} b5 {[%emt 0:15:36]} 16. Qd1 {[%emt 0:0:44]} Bc2 {[%emt 0:1:48]} 17. Qe1 {[%emt 0:0:15]} Qb7 {[%emt 0:1:46]} 18. Rc1 {[%emt 0:0:27]} Rc8 {[%emt 0:0:27]} 19. Nb3 {[%emt 0:2:1]} Bxb3 {[%emt 0:2:38]} 20. axb3 {[%emt 0:0:14]} Rc6 {[%emt 0:1:51]} 21. f3 {[%emt 0:27:23]} Qc8 {[%emt 0:1:24]} 22. Rxc6 {[%emt 0:2:33]} Qxc6 {[%emt 0:0:6]} 23. Qd2 {[%emt 0:0:25]} b4 {[%emt 0:9:29]} 24. Bf1 {[%emt 0:7:19]} Nd7 {[%emt 0:10:4]} 25. g4 {[%emt 0:7:19]} a5 {[%emt 0:3:27]} 26. Qc1 {[%emt 0:6:57]} Qxc1 {[%emt 0:1:8]} 27. Bxc1 {[%emt 0:0:4]} e5 {[%emt 0:7:16]} 28. e3 {[%emt 0:1:58]} exd4 {[%emt 0:4:41]} 29. exd4 {[%emt 0:0:4]} Bf6 {[%emt 0:0:3]} 30. Be3 {[%emt 0:0:8]} Nf8 {[%emt 0:0:17]} 31. g5 {[%emt 0:0:25]} Bd8 {[%emt 0:0:2]} 32. f4 {[%emt 0:8:18]} Ne6 {[%emt 0:0:12]} 33. Bg2 {[%emt 0:0:11]} Bb6 {[%emt 0:2:35]} 34. Bxd5 {[%emt 0:0:16]} Nxd4 {[%emt 0:1:36]} 35. Kf2 {[%emt 0:2:43]} Bc5 {[%emt 0:0:30]} 36. Bc4 {[%emt 0:3:18]} Kf8 {[%emt 0:0:39]} 37. f5 {[%emt 0:1:20]} Ke7 {[%emt 0:2:11]} 38. h4 {[%emt 0:2:25]} f6 {[%emt 0:10:4]} 39. Bg8 {[%emt 0:2:9]} h6 {[%emt 0:5:22]} 40. gxh6 {[%emt 0:0:42]} gxh6 {[%emt 0:0:1]} 41. Bc4 {[%emt 0:31:6]} h5 {[%emt 0:0:0]} 42. Bxd4 {[%emt 0:0:0]} Bxd4+ {[%emt 0:0:0]} 43. Kf3 {[%emt 0:0:0]} Bxb2 {[%emt 0:0:0]} 44. Ke4 {[%emt 0:0:0]} Kd6 {[%emt 0:0:0]} 45. Bf7 {[%emt 0:0:0]} Bc3 {[%emt 0:0:0]} 46. Bxh5 {[%emt 0:0:0]} Be1 {[%emt 0:0:0]} 47. Kd4 {[%emt 0:0:0]} Bxh4 {[%emt 0:0:0]} 48. Kc4 {[%emt 0:0:0]} Ke5 {[%emt 0:0:0]} 49. Bg6 {[%emt 0:0:0]} Ke4 {[%emt 0:0:0]} 50. Kb5 {[%emt 0:0:0]} Kd4 {[%emt 0:0:0]} 51. Kxa5 {[%emt 0:0:0]} Kc3 {[%emt 0:0:0]} 52. Ka4 {[%emt 0:0:0]} Bg3 {[%emt 0:0:0]} 1/2-1/2

[Event "56th Biel Festival MTO 2023"]
[White "Monteverde,Jonathan"]
[Black "Abdulrahman Mohammad,Al Taher"]
[Site "Biel"]
[Round "5.31"]
[Annotator "RC"]
[Result "1/2-1/2"]
[Date "2023.07.21"]
[WhiteElo "2074"]
[BlackElo "2258"]
[PlyCount "122"]
[TimeControl "60"]

1. d4 {[%emt 0:0:0]} d5 {[%emt 0:0:0]} 2. c4 {[%emt 0:0:0]} e6 {[%emt 0:0:0]} 3. Nc3 {[%emt 0:0:0]} Nf6 {[%emt 0:0:0]} 4. cxd5 {[%emt 0:0:0]} exd5 {[%emt 0:0:0]} 5. Bg5 {[%emt 0:0:0]} Be7 {[%emt 0:0:0]} 6. e3 {[%emt 0:0:0]} O-O {[%emt 0:0:0]} 7. Bd3 {[%emt 0:0:0]} h6 {[%emt 0:0:0]} 8. Bh4 {[%emt 0:0:0]} c6 {[%emt 0:0:0]} 9. Nge2 {[%emt 0:0:0]} Re8 {[%emt 0:0:0]} 10. O-O {[%emt 0:0:0]} Nbd7 {[%emt 0:0:0]} 11. Qc2 {[%emt 0:0:0]} Nh5 {[%emt 0:0:0]} 12. Bxe7 {[%emt 0:0:0]} Qxe7 {[%emt 0:0:0]} 13. Rae1 {[%emt 0:1:12]} Nf8 {[%emt 0:0:0]} 14. Rb1 {[%emt 0:5:0]} Be6 {[%emt 0:13:55]} 15. b4 {[%emt 0:1:3]} Rac8 {[%emt 0:1:47]} 16. Qd2 {[%emt 0:13:36]} a6 {[%emt 0:12:0]} 17. Na4 {[%emt 0:4:51]} Qg5 {[%emt 0:14:55]} 18. Nc5 {[%emt 0:21:34]} Rc7 {[%emt 0:2:23]} 19. a4 {[%emt 0:6:7]} Bg4 {[%emt 0:5:37]} 20. b5 {[%emt 0:14:48]} axb5 {[%emt 0:0:36]} 21. axb5 {[%emt 0:0:4]} Ng6 {[%emt 0:5:8]} 22. Bxg6 {[%emt 0:0:36]} Qxg6 {[%emt 0:2:21]} 23. bxc6 {[%emt 0:0:55]} bxc6 {[%emt 0:1:25]} 24. Nd3 {[%emt 0:7:56]} Bf5 {[%emt 0:14:33]} 25. Ne5 {[%emt 0:0:10]} Qd6 {[%emt 0:5:45]} 26. Rb6 {[%emt 0:0:20]} Nf6 {[%emt 0:3:15]} 27. Ng3 {[%emt 0:0:13]} Bd7 {[%emt 0:3:36]} 28. Rc1 {[%emt 0:0:18]} Ng4 {[%emt 0:2:4]} 29. Nxg4 {[%emt 0:3:44]} Bxg4 {[%emt 0:0:7]} 30. h3 {[%emt 0:0:33]} Bd7 {[%emt 0:0:38]} 31. Qb4 {[%emt 0:3:6]} Qxb4 {[%emt 0:3:50]} 32. Rxb4 {[%emt 0:0:5]} Rec8 {[%emt 0:0:20]} 33. Rc5 {[%emt 0:2:42]} Kf8 {[%emt 0:2:24]} 34. Nh5 {[%emt 0:1:7]} g5 {[%emt 0:1:11]} 35. Ng3 {[%emt 0:0:40]} Ke7 {[%emt 0:0:20]} 36. Ne2 {[%emt 0:1:56]} Ra7 {[%emt 0:0:52]} 37. Rb2 {[%emt 0:1:37]} Rca8 {[%emt 0:0:57]} 38. Nc1 {[%emt 0:0:31]} f6 {[%emt 0:1:20]} 39. Kh2 {[%emt 0:3:41]} h5 {[%emt 0:2:2]} 40. h4 {[%emt 0:4:45]} gxh4 {[%emt 0:2:11]} 41. Nd3 {[%emt 0:34:48]} Kd6 {[%emt 0:0:0]} 42. Rc1 {[%emt 0:0:0]} Ra2 {[%emt 0:0:0]} 43. Rxa2 {[%emt 0:0:0]} Rxa2 {[%emt 0:0:0]} 44. Kg1 {[%emt 0:0:0]} h3 {[%emt 0:6:5]} 45. gxh3 {[%emt 0:0:0]} Bxh3 {[%emt 0:0:40]} 46. Nb4 {[%emt 0:0:0]} Ra4 {[%emt 0:0:47]} 47. Rxc6+ {[%emt 0:0:0]} Kd7 {[%emt 0:0:9]} 48. Rb6 {[%emt 0:0:0]} Ra1+ {[%emt 0:8:5]} 49. Kh2 {[%emt 0:0:0]} Be6 {[%emt 0:0:6]} 50. Nd3 {[%emt 0:0:0]} Bf5 {[%emt 0:3:4]} 51. Nf4 {[%emt 0:0:0]} Be4 {[%emt 0:0:17]} 52. Rxf6 {[%emt 0:0:0]} Ke7 {[%emt 0:2:9]} 53. Rh6 {[%emt 0:0:0]} Rh1+ {[%emt 0:0:26]} 54. Kg3 {[%emt 0:0:0]} Rg1+ {[%emt 0:0:8]} 55. Kh4 {[%emt 0:0:0]} Rh1+ {[%emt 0:0:5]} 56. Kg5 {[%emt 0:0:0]} Rh2 {[%emt 0:0:55]} 57. Rxh5 {[%emt 0:0:35]} Rxf2 {[%emt 0:0:8]} 58. Rh6 {[%emt 0:3:27]} Rf3 {[%emt 0:1:16]} 59. Re6+ {[%emt 0:0:5]} Kd7 {[%emt 0:0:24]} 60. Re5 {[%emt 0:0:41]} Kd6 {[%emt 0:0:34]} 61. Re6+ {[%emt 0:2:22]} Kd7 {[%emt 0:0:6]} 1/2-1/2

[Event "56th Biel Festival MTO 2023"]
[White "Gomez Barrera,Javiera Belen"]
[Black "Ehsani,Yassamin"]
[Site "Biel"]
[Round "5.32"]
[Annotator "RC"]
[Result "1/2-1/2"]
[Date "2023.07.21"]
[WhiteElo "2256"]
[BlackElo "2106"]
[PlyCount "115"]
[TimeControl "60"]

1. e4 {[%emt 0:0:0]} c5 {[%emt 0:0:0]} 2. Nf3 {[%emt 0:0:0]} e6 {[%emt 0:0:0]} 3. d4 {[%emt 0:0:0]} cxd4 {[%emt 0:0:0]} 4. Nxd4 {[%emt 0:0:0]} a6 {[%emt 0:0:0]} 5. Nc3 {[%emt 0:0:0]} Qc7 {[%emt 0:0:0]} 6. Bd3 {[%emt 0:0:0]} Bc5 {[%emt 0:0:0]} 7. Nb3 {[%emt 0:0:0]} Be7 {[%emt 0:0:0]} 8. Bd2 {[%emt 0:0:0]} Nf6 {[%emt 0:0:0]} 9. Qe2 {[%emt 0:1:15]} d6 {[%emt 0:0:0]} 10. f4 {[%emt 0:17:35]} Nc6 {[%emt 0:0:33]} 11. g4 {[%emt 0:11:31]} b5 {[%emt 0:20:40]} 12. g5 {[%emt 0:2:27]} Nd7 {[%emt 0:1:30]} 13. O-O-O {[%emt 0:15:36]} Nc5 {[%emt 0:10:24]} 14. Nxc5 {[%emt 0:13:48]} dxc5 {[%emt 0:0:16]} 15. e5 {[%emt 0:0:1]} Bb7 {[%emt 0:2:51]} 16. Be4 {[%emt 0:6:9]} O-O-O {[%emt 0:6:39]} 17. Be3 {[%emt 0:3:20]} Qa5 {[%emt 0:13:5]} 18. Qg2 {[%emt 0:2:59]} Kc7 {[%emt 0:3:30]} 19. Kb1 {[%emt 0:0:24]} b4 {[%emt 0:5:9]} 20. Ne2 {[%emt 0:0:16]} Qb5 {[%emt 0:1:39]} 21. Ng3 {[%emt 0:15:29]} a5 {[%emt 0:7:13]} 22. Qe2 {[%emt 0:2:1]} Qxe2 {[%emt 0:4:8]} 23. Nxe2 {[%emt 0:0:2]} Nxe5 {[%emt 0:2:14]} 24. Bxb7 {[%emt 0:0:14]} Nc4 {[%emt 0:0:9]} 25. Bxc5 {[%emt 0:2:51]} Bxc5 {[%emt 0:0:14]} 26. Ba6 {[%emt 0:0:15]} Ne3 {[%emt 0:2:10]} 27. Rde1 {[%emt 0:5:25]} Ng2 {[%emt 0:2:50]} 28. Ref1 {[%emt 0:1:2]} g6 {[%emt 0:0:30]} 29. Ng3 {[%emt 0:1:10]} Rd4 {[%emt 0:3:7]} 30. Ne2 {[%emt 0:0:30]} Rd6 {[%emt 0:0:11]} 31. Bd3 {[%emt 0:0:0]} Rhd8 {[%emt 0:1:12]} 32. h4 {[%emt 0:1:0]} Ne3 {[%emt 0:4:13]} 33. Rf3 {[%emt 0:1:0]} Ng4 {[%emt 0:0:42]} 34. Rc1 {[%emt 0:0:33]} Nf2 {[%emt 0:0:28]} 35. Ng3 {[%emt 0:0:19]} Nxd3 {[%emt 0:2:51]} 36. cxd3 {[%emt 0:0:6]} Kb6 {[%emt 0:0:16]} 37. Ne4 {[%emt 0:0:28]} Rc6 {[%emt 0:0:17]} 38. Nf6 {[%emt 0:1:10]} Bd4 {[%emt 0:0:39]} 39. Ng4 {[%emt 0:0:22]} Rxc1+ {[%emt 0:1:12]} 40. Kxc1 {[%emt 0:0:2]} Rc8+ {[%emt 0:0:6]} 41. Kb1 {[%emt 0:31:2]} a4 {[%emt 0:31:11]} 42. Ne5 {[%emt 0:0:0]} b3 {[%emt 0:0:0]} 43. axb3 {[%emt 0:0:0]} axb3 {[%emt 0:0:0]} 44. Nc4+ {[%emt 0:0:0]} Kc5 {[%emt 0:0:0]} 45. h5 {[%emt 0:0:0]} Rf8 {[%emt 0:0:0]} 46. Na5 {[%emt 0:0:0]} Rb8 {[%emt 0:0:0]} 47. Rh3 {[%emt 0:0:0]} Rb5 {[%emt 0:0:0]} 48. Nc4 {[%emt 0:0:0]} Kb4 {[%emt 0:0:0]} 49. hxg6 {[%emt 0:0:0]} hxg6 {[%emt 0:0:0]} 50. Kc1 {[%emt 0:0:0]} Rf5 {[%emt 0:0:0]} 51. Rh4 {[%emt 0:0:0]} f6 {[%emt 0:0:0]} 52. gxf6 {[%emt 0:0:0]} Bxf6 {[%emt 0:0:0]} 53. Rg4 {[%emt 0:0:0]} Rxf4 {[%emt 0:0:0]} 54. Rxg6 {[%emt 0:0:0]} Rf2 {[%emt 0:0:0]} 55. Rg8 {[%emt 0:0:0]} Bd4 {[%emt 0:0:0]} 56. Rb8+ {[%emt 0:0:0]} Ka4 {[%emt 0:0:0]} 57. Ra8+ {[%emt 0:0:0]} Kb4 {[%emt 0:0:0]} 58. Rb8+ {[%emt 0:0:0]} 1/2-1/2

[Event "56th Biel Festival MTO 2023"]
[White "Foerster-Yialamas,Lucas"]
[Black "Joly,Julien"]
[Site "Biel"]
[Round "5.33"]
[Annotator "RC"]
[Result "1/2-1/2"]
[Date "2023.07.21"]
[WhiteElo "2157"]
[BlackElo "2249"]
[PlyCount "132"]
[TimeControl "60"]

1. e4 {[%emt 0:0:0]} e6 {[%emt 0:0:0]} 2. d4 {[%emt 0:0:0]} d5 {[%emt 0:0:0]} 3. Nc3 {[%emt 0:0:0]} Nf6 {[%emt 0:0:0]} 4. e5 {[%emt 0:0:0]} Nfd7 {[%emt 0:0:0]} 5. f4 {[%emt 0:0:0]} c5 {[%emt 0:0:0]} 6. Nf3 {[%emt 0:0:0]} Nc6 {[%emt 0:0:0]} 7. Be3 {[%emt 0:0:0]} Be7 {[%emt 0:0:0]} 8. Qd2 {[%emt 0:0:0]} O-O {[%emt 0:0:0]} 9. Nd1 {[%emt 0:0:0]} cxd4 {[%emt 0:0:0]} 10. Nxd4 {[%emt 0:0:0]} Nc5 {[%emt 0:1:20]} 11. Nf2 {[%emt 0:0:0]} Qb6 {[%emt 0:13:37]} 12. c3 {[%emt 0:0:0]} Qc7 {[%emt 0:6:5]} 13. g4 {[%emt 0:1:0]} Bd7 {[%emt 0:15:43]} 14. g5 {[%emt 0:5:47]} Nxd4 {[%emt 0:0:35]} 15. Bxd4 {[%emt 0:2:40]} Ne4 {[%emt 0:6:23]} 16. Nxe4 {[%emt 0:1:15]} dxe4 {[%emt 0:0:17]} 17. Bg2 {[%emt 0:0:30]} Bc6 {[%emt 0:11:24]} 18. Qe3 {[%emt 0:1:13]} Rad8 {[%emt 0:6:58]} 19. O-O {[%emt 0:2:39]} Rd7 {[%emt 0:2:5]} 20. Bxe4 {[%emt 0:1:28]} Bxe4 {[%emt 0:0:12]} 21. Qxe4 {[%emt 0:0:2]} Bc5 {[%emt 0:0:32]} 22. Rfd1 {[%emt 0:7:53]} Rfd8 {[%emt 0:0:7]} 23. Rd2 {[%emt 0:11:25]} Qa5 {[%emt 0:3:59]} 24. Qe3 {[%emt 0:2:54]} Bxd4 {[%emt 0:6:57]} 25. cxd4 {[%emt 0:0:0]} Qa4 {[%emt 0:0:12]} 26. b3 {[%emt 0:0:54]} Qc6 {[%emt 0:2:9]} 27. Rad1 {[%emt 0:1:31]} b5 {[%emt 0:2:7]} 28. Kf2 {[%emt 0:6:17]} Rd5 {[%emt 0:1:18]} 29. h4 {[%emt 0:2:2]} Rc8 {[%emt 0:1:53]} 30. Re1 {[%emt 0:11:41]} Kf8 {[%emt 0:2:4]} 31. Ree2 {[%emt 0:11:49]} Qc1 {[%emt 0:2:9]} 32. Qe4 {[%emt 0:9:3]} g6 {[%emt 0:3:28]} 33. Rc2 {[%emt 0:3:31]} Rxc2 {[%emt 0:0:5]} 34. Rxc2 {[%emt 0:0:4]} Qd1 {[%emt 0:0:17]} 35. Ke3 {[%emt 0:2:52]} Qe1+ {[%emt 0:1:35]} 36. Kd3 {[%emt 0:1:29]} Qxh4 {[%emt 0:1:17]} 37. Rc5 {[%emt 0:0:58]} Qg3+ {[%emt 0:2:9]} 38. Qe3 {[%emt 0:2:53]} Qg2 {[%emt 0:0:14]} 39. Rxd5 {[%emt 0:0:44]} exd5 {[%emt 0:1:0]} 40. Qd2 {[%emt 0:0:13]} Qe4+ {[%emt 0:9:48]} 41. Kc3 {[%emt 0:30:1]} a5 {[%emt 0:31:13]} 42. Kb2 {[%emt 0:1:50]} b4 {[%emt 0:0:0]} 43. a3 {[%emt 0:0:0]} bxa3+ {[%emt 0:0:0]} 44. Kxa3 {[%emt 0:0:0]} Qb1 {[%emt 0:0:0]} 45. Qxa5 {[%emt 0:0:0]} Qa1+ {[%emt 0:0:0]} 46. Kb4 {[%emt 0:0:0]} Qxd4+ {[%emt 0:0:0]} 47. Kb5 {[%emt 0:0:0]} Qd3+ {[%emt 0:0:0]} 48. Ka4 {[%emt 0:0:0]} d4 {[%emt 0:0:0]} 49. e6 {[%emt 0:0:0]} fxe6 {[%emt 0:0:0]} 50. Qd8+ {[%emt 0:0:0]} Kg7 {[%emt 0:0:0]} 51. Qe7+ {[%emt 0:0:0]} Kg8 {[%emt 0:0:0]} 52. Qxe6+ {[%emt 0:0:0]} Kg7 {[%emt 0:0:0]} 53. Qe7+ {[%emt 0:0:0]} Kg8 {[%emt 0:0:0]} 54. Qd8+ {[%emt 0:0:0]} Kf7 {[%emt 0:0:0]} 55. Qd7+ {[%emt 0:0:0]} Kf8 {[%emt 0:0:0]} 56. Qxh7 {[%emt 0:0:0]} Qa6+ {[%emt 0:0:0]} 57. Kb4 {[%emt 0:0:0]} Qd6+ {[%emt 0:0:0]} 58. Kc4 {[%emt 0:0:0]} d3 {[%emt 0:0:0]} 59. Qh8+ {[%emt 0:0:0]} Kf7 {[%emt 0:0:0]} 60. Qh7+ {[%emt 0:0:0]} Ke8 {[%emt 0:0:0]} 61. Qg8+ {[%emt 0:0:0]} Kd7 {[%emt 0:0:0]} 62. Qf7+ {[%emt 0:0:0]} Kd8 {[%emt 0:0:0]} 63. Qg8+ {[%emt 0:0:0]} Kc7 {[%emt 0:0:0]} 64. Qf7+ {[%emt 0:0:0]} Kd8 {[%emt 0:0:0]} 65. Qg8+ {[%emt 0:0:0]} Kc7 {[%emt 0:0:0]} 66. Qf7+ {[%emt 0:0:0]} Kd8 {[%emt 0:0:0]} 1/2-1/2

[Event "56th Biel Festival MTO 2023"]
[White "Adam,Rafael"]
[Black "Ermitsch,Magnus"]
[Site "Biel"]
[Round "5.34"]
[Annotator "NA RC"]
[Result "1/2-1/2"]
[Date "2023.07.21"]
[WhiteElo "2117"]
[BlackElo "2232"]
[PlyCount "82"]
[TimeControl "60"]

1. Nf3 {[%emt 0:0:0]} Nf6 {[%emt 0:0:0]} 2. g3 {[%emt 0:0:0]} d5 {[%emt 0:0:0]} 3. c4 {[%emt 0:0:0]} c6 {[%emt 0:0:0]} 4. Bg2 {[%emt 0:0:0]} Bg4 {[%emt 0:0:0]} 5. d4 {[%emt 0:0:0]} e6 {[%emt 0:0:0]} 6. O-O {[%emt 0:0:0]} Nbd7 {[%emt 0:0:0]} 7. Nbd2 {[%emt 0:0:0]} Bd6 {[%emt 0:10:3]} 8. b3 {[%emt 0:2:3]} O-O {[%emt 0:3:10]} 9. Bb2 {[%emt 0:1:13]} Bf5 {[%emt 0:3:34]} 10. Nh4 {[%emt 0:4:12]} Re8 {[%emt 0:2:32]} 11. Re1 {[%emt 0:18:11]} Nf8 {[%emt 0:14:44]} 12. f3 {[%emt 0:23:18]} Ng6 {[%emt 0:4:47]} 13. Nxf5 {[%emt 0:3:2]} exf5 {[%emt 0:0:46]} 14. e4 {[%emt 0:4:5]} fxe4 {[%emt 0:2:49]} 15. fxe4 {[%emt 0:1:56]} dxe4 {[%emt 0:1:23]} 16. Nxe4 {[%emt 0:0:37]} Nxe4 {[%emt 0:0:27]} 17. Rxe4 {[%emt 0:1:13]} Rxe4 {[%emt 0:1:55]} 18. Bxe4 {[%emt 0:0:7]} Qg5 {[%emt 0:0:26]} 19. Bxg6 {[%emt 0:27:50]} hxg6 {[%emt 0:14:18]} 20. Qe2 {[%emt 0:0:31]} Be7 {[%emt 0:7:6]} 21. Rd1 {[%emt 0:3:17]} Rd8 {[%emt 0:1:10]} 22. Qd2 {[%emt 0:0:53]} Qg4 {[%emt 0:1:4]} 23. Rf1 {[%emt 0:5:9]} g5 {[%emt 0:2:0]} 24. Qf2 {[%emt 0:1:47]} Bf6 {[%emt 0:0:41]} 25. d5 {[%emt 0:0:16]} Bxb2 {[%emt 0:0:25]} 26. Qxb2 {[%emt 0:0:5]} cxd5 {[%emt 0:0:56]} 27. Qf2 {[%emt 0:0:21]} Qd7 {[%emt 0:8:49]} 28. cxd5 {[%emt 0:0:14]} Qxd5 {[%emt 0:1:29]} 29. Qxa7 {[%emt 0:0:24]} b5 {[%emt 0:0:36]} 30. Qf2 {[%emt 0:1:51]} f6 {[%emt 0:1:45]} 31. Qf5 {[%emt 0:1:16]} Qd4+ {[%emt 0:0:26]} 32. Qf2 {[%emt 0:1:17]} Qc3 {[%emt 0:0:37]} 33. Re1 {[%emt 0:0:59]} Rd2 {[%emt 0:2:56]} 34. Qe3 {[%emt 0:0:13]} Qxe3+ {[%emt 0:0:33]} 35. Rxe3 {[%emt 0:0:4]} Rxa2 {[%emt 0:0:47]} 36. Re8+ {[%emt 0:0:5]} Kf7 {[%emt 0:0:16]} 37. Rb8 {[%emt 0:0:6]} g4 {[%emt 0:2:25]} 38. Rxb5 {[%emt 0:0:5]} Rb2 {[%emt 0:0:33]} 39. Rb4 {[%emt 0:0:36]} f5 {[%emt 0:0:12]} 40. Rb6 {[%emt 0:0:5]} g5 {[%emt 0:2:3]} 41. Kh1 {[%emt 0:0:0]} Kg7 {[%emt 0:0:0]} 1/2-1/2

[Event "56th Biel Festival MTO 2023"]
[White "Malli,Suvirr"]
[Black "Kocharin,Timur"]
[Site "Biel"]
[Round "5.35"]
[Annotator "ChessBase"]
[Result "1-0"]
[Date "2023.07.21"]
[WhiteElo "2094"]
[BlackElo "2225"]
[PlyCount "131"]
[TimeControl "60"]

1. e4 {[%emt 0:0:0]} c5 {[%emt 0:0:0]} 2. Nf3 {[%emt 0:0:0]} d6 {[%emt 0:0:0]} 3. d4 {[%emt 0:0:0]} cxd4 {[%emt 0:0:0]} 4. Nxd4 {[%emt 0:0:0]} Nf6 {[%emt 0:0:0]} 5. Nc3 {[%emt 0:0:0]} a6 {[%emt 0:0:0]} 6. f4 {[%emt 0:0:0]} e5 {[%emt 0:0:0]} 7. Nf3 {[%emt 0:0:0]} Qc7 {[%emt 0:0:0]} 8. a4 {[%emt 0:0:0]} Be7 {[%emt 0:0:0]} 9. Bd3 {[%emt 0:0:0]} O-O {[%emt 0:0:0]} 10. O-O {[%emt 0:0:0]} Nc6 {[%emt 0:7:56]} 11. h3 {[%emt 0:0:17]} exf4 {[%emt 0:3:45]} 12. Bxf4 {[%emt 0:2:27]} Ne5 {[%emt 0:12:0]} 13. Kh1 {[%emt 0:7:35]} Be6 {[%emt 0:6:47]} 14. Nd4 {[%emt 0:7:25]} Qb6 {[%emt 0:6:41]} 15. Be3 {[%emt 0:16:24]} Qc7 {[%emt 0:8:12]} 16. Nf5 {[%emt 0:7:48]} Nxd3 {[%emt 0:6:37]} 17. Nxe7+ {[%emt 0:3:0]} Qxe7 {[%emt 0:0:4]} 18. cxd3 {[%emt 0:1:39]} h6 {[%emt 0:5:55]} 19. Qf3 {[%emt 0:2:10]} Nh7 {[%emt 0:6:18]} 20. Qg3 {[%emt 0:2:18]} Kh8 {[%emt 0:0:19]} 21. Ne2 {[%emt 0:0:39]} f6 {[%emt 0:8:39]} 22. Rac1 {[%emt 0:7:41]} Rfd8 {[%emt 0:5:21]} 23. Bb6 {[%emt 0:10:31]} Rdc8 {[%emt 0:4:0]} 24. Nf4 {[%emt 0:0:59]} Nf8 {[%emt 0:0:30]} 25. d4 {[%emt 0:2:24]} Bf7 {[%emt 0:2:21]} 26. Qf3 {[%emt 0:4:30]} Rc4 {[%emt 0:1:52]} 27. Rxc4 {[%emt 0:0:45]} Bxc4 {[%emt 0:0:10]} 28. Rc1 {[%emt 0:0:20]} Be6 {[%emt 0:5:19]} 29. Rc7 {[%emt 0:0:36]} Bd7 {[%emt 0:0:30]} 30. a5 {[%emt 0:8:14]} Re8 {[%emt 0:1:5]} 31. Rxb7 {[%emt 0:2:30]} Qxe4 {[%emt 0:0:28]} 32. Qxe4 {[%emt 0:0:7]} Rxe4 {[%emt 0:0:3]} 33. Ng6+ {[%emt 0:0:46]} Nxg6 {[%emt 0:0:46]} 34. Rxd7 {[%emt 0:0:4]} Re1+ {[%emt 0:3:21]} 35. Kh2 {[%emt 0:0:9]} Re2 {[%emt 0:0:6]} 36. Kg3 {[%emt 0:0:33]} Rxb2 {[%emt 0:1:36]} 37. Rxd6 {[%emt 0:0:55]} Rb3+ {[%emt 0:0:6]} 38. Kf2 {[%emt 0:1:58]} Rb2+ {[%emt 0:0:6]} 39. Kf1 {[%emt 0:1:2]} Rb1+ {[%emt 0:0:6]} 40. Ke2 {[%emt 0:0:29]} Rb2+ {[%emt 0:0:7]} 41. Ke1 {[%emt 0:31:32]} Rb1+ {[%emt 0:36:40]} 42. Kd2 {[%emt 0:4:4]} Rb2+ {[%emt 0:0:39]} 43. Ke3 {[%emt 0:2:0]} Rxg2 {[%emt 0:2:1]} 44. Bc5 {[%emt 0:0:23]} Kh7 {[%emt 0:0:0]} 45. Rxa6 {[%emt 0:0:0]} f5 {[%emt 0:0:0]} 46. Ra8 {[%emt 0:0:0]} f4+ {[%emt 0:0:0]} 47. Kf3 {[%emt 0:0:0]} Rg3+ {[%emt 0:0:0]} 48. Kf2 {[%emt 0:0:0]} Nh4 {[%emt 0:0:0]} 49. a6 {[%emt 0:0:0]} Rg2+ {[%emt 0:0:0]} 50. Kf1 {[%emt 0:0:0]} Ra2 {[%emt 0:0:0]} 51. a7 {[%emt 0:0:0]} Ra1+ {[%emt 0:4:18]} 52. Ke2 {[%emt 0:1:36]} f3+ {[%emt 0:0:5]} 53. Ke3 {[%emt 0:1:39]} Re1+ {[%emt 0:0:19]} 54. Kd2 {[%emt 0:0:49]} Ra1 {[%emt 0:1:50]} 55. Rf8 {[%emt 0:0:29]} Ra2+ {[%emt 0:0:14]} 56. Kd3 {[%emt 0:0:35]} f2 {[%emt 0:0:46]} 57. Rxf2 {[%emt 0:0:14]} Rxf2 {[%emt 0:0:30]} 58. a8=Q {[%emt 0:0:6]} Rf3+ {[%emt 0:0:5]} 59. Ke4 {[%emt 0:0:45]} Rxh3 {[%emt 0:0:22]} 60. d5 {[%emt 0:0:19]} Ng6 {[%emt 0:0:14]} 61. d6 {[%emt 0:0:43]} Rh5 {[%emt 0:0:58]} 62. Kd4 {[%emt 0:1:18]} Ne5 {[%emt 0:0:30]} 63. Qe4+ {[%emt 0:0:12]} Kg8 {[%emt 0:0:6]} 64. Qd5+ {[%emt 0:1:8]} Kh7 {[%emt 0:0:10]} 65. Qxe5 {[%emt 0:0:17]} Rxe5 {[%emt 0:0:12]} 66. Kxe5 {[%emt 0:0:4]} 1-0

[Event "56th Biel Festival MTO 2023"]
[White "Ribiere,Damien"]
[Black "Lorscheid,Gerhard"]
[Site "Biel"]
[Round "5.36"]
[Annotator "NA RC"]
[Result "1/2-1/2"]
[Date "2023.07.21"]
[WhiteElo "2213"]
[BlackElo "2099"]
[PlyCount "40"]
[TimeControl "60"]

1. e4 {[%emt 0:0:0]} d6 {[%emt 0:0:0]} 2. Nc3 {[%emt 0:0:0]} Nf6 {[%emt 0:0:0]} 3. Bc4 {[%emt 0:0:0]} c6 {[%emt 0:0:0]} 4. Bb3 {[%emt 0:0:0]} e5 {[%emt 0:0:30]} 5. d3 {[%emt 0:0:0]} Nbd7 {[%emt 0:0:41]} 6. f4 {[%emt 0:0:0]} Nc5 {[%emt 0:0:26]} 7. Nf3 {[%emt 0:0:0]} Nxb3 {[%emt 0:2:24]} 8. axb3 {[%emt 0:0:0]} exf4 {[%emt 0:0:17]} 9. Bxf4 {[%emt 0:0:0]} Be7 {[%emt 0:0:56]} 10. O-O {[%emt 0:0:0]} O-O {[%emt 0:2:57]} 11. Qd2 {[%emt 0:0:0]} d5 {[%emt 0:2:56]} 12. e5 {[%emt 0:0:0]} Ne8 {[%emt 0:5:51]} 13. Qf2 {[%emt 0:0:40]} a6 {[%emt 0:8:29]} 14. Na4 {[%emt 0:12:9]} Nc7 {[%emt 0:1:43]} 15. Be3 {[%emt 0:4:13]} Ne6 {[%emt 0:7:10]} 16. Bb6 {[%emt 0:7:29]} Qe8 {[%emt 0:1:0]} 17. Rae1 {[%emt 0:2:40]} f6 {[%emt 0:8:31]} 18. Nc5 {[%emt 0:10:12]} fxe5 {[%emt 0:5:7]} 19. Nxe6 {[%emt 0:4:43]} Bxe6 {[%emt 0:0:24]} 20. Rxe5 {[%emt 0:0:28]} Bd6 {[%emt 0:0:12]} 1/2-1/2